[Event "*** Titled Tuesday Blitz"]
[Site "Chess.com"]
[Date "2019.06.04"]
[Round "6"]
[White "Dr-Bassem"]
[Black "TST2014"]
[Result "1-0"]
[WhiteElo "2863"]
[BlackElo "2571"]
[TimeControl "180+2"]
[EndTime "14:19:32 PDT"]
[Termination "Dr-Bassem won by checkmate"]

1. e4 {[%clk 0:03:01.9]} 1... c5 {[%clk 0:03:00.4]} 2. Nf3 {[%clk 0:03:02.8]}
2... Nc6 {[%clk 0:03:01.1]} 3. d3 {[%clk 0:03:00.5]} 3... g6 {[%clk 0:03:01.2]}
4. g3 {[%clk 0:03:02.1]} 4... Bg7 {[%clk 0:03:02.3]} 5. Bg2 {[%clk 0:03:03.8]}
5... d6 {[%clk 0:03:01.7]} 6. O-O {[%clk 0:03:05.3]} 6... Nf6 {[%clk 0:02:59.9]}
7. c3 {[%clk 0:03:06.2]} 7... O-O {[%clk 0:02:58.4]} 8. Re1 {[%clk 0:03:07.5]}
8... e5 {[%clk 0:02:58.3]} 9. a3 {[%clk 0:03:07.7]} 9... d5 {[%clk 0:02:46.7]}
10. Nbd2 {[%clk 0:03:03.7]} 10... d4 {[%clk 0:02:44.7]} 11. cxd4 {[%clk
0:03:04.4]} 11... cxd4 {[%clk 0:02:44.9]} 12. b4 {[%clk 0:03:05.9]} 12... a6
{[%clk 0:02:43]} 13. Nb3 {[%clk 0:03:03.7]} 13... Ne8 {[%clk 0:02:32]} 14. Bd2
{[%clk 0:02:57.9]} 14... Nd6 {[%clk 0:02:28.7]} 15. a4 {[%clk 0:02:57.4]} 15...
Be6 {[%clk 0:02:26.6]} 16. Nc5 {[%clk 0:02:57.1]} 16... Bc8 {[%clk 0:02:26.6]}
17. Rc1 {[%clk 0:02:45.5]} 17... Qe7 {[%clk 0:02:21.5]} 18. Qb3 {[%clk
0:02:35.5]} 18... Kh8 {[%clk 0:02:17.1]} 19. b5 {[%clk 0:02:22.9]} 19... axb5
{[%clk 0:02:14]} 20. axb5 {[%clk 0:02:24.8]} 20... Na5 {[%clk 0:02:14.1]} 21.
Qb4 {[%clk 0:02:12.6]} 21... b6 {[%clk 0:02:12.2]} 22. Na4 {[%clk 0:02:12.5]}
22... Qd8 {[%clk 0:01:53]} 23. Nxd4 {[%clk 0:01:10.2]} 23... exd4 {[%clk
0:01:35]} 24. Bf4 {[%clk 0:01:11]} 24... Nab7 {[%clk 0:01:25.9]} 25. Rc6 {[%clk
0:01:07.3]} 25... Ne8 {[%clk 0:00:45.2]} 26. Nxb6 {[%clk 0:01:04.6]} 26... Bd7
{[%clk 0:00:27]} 27. Nxa8 {[%clk 0:01:03.2]} 27... Qxa8 {[%clk 0:00:28.7]} 28.
e5 {[%clk 0:00:52]} 28... Qa5 {[%clk 0:00:25.6]} 29. Qxa5 {[%clk 0:00:36.6]}
29... Nxa5 {[%clk 0:00:26.6]} 30. Ra6 {[%clk 0:00:35.9]} 30... Nb3 {[%clk
0:00:23.8]} 31. Rb1 {[%clk 0:00:33.6]} 31... Nc5 {[%clk 0:00:24.4]} 32. Ra7
{[%clk 0:00:34.3]} 32... Bf5 {[%clk 0:00:22.2]} 33. b6 {[%clk 0:00:32.2]} 33...
Bxd3 {[%clk 0:00:23]} 34. Rc1 {[%clk 0:00:32.5]} 34... Ne6 {[%clk 0:00:19.9]}
35. Ra8 {[%clk 0:00:27.8]} 35... g5 {[%clk 0:00:19.8]} 36. b7 {[%clk 0:00:25.4]}
36... gxf4 {[%clk 0:00:13.7]} 37. b8=Q {[%clk 0:00:26.2]} 37... fxg3 {[%clk
0:00:14.5]} 38. hxg3 {[%clk 0:00:24.9]} 38... N8c7 {[%clk 0:00:15.1]} 39. Rxc7
{[%clk 0:00:19.7]} 39... Nxc7 {[%clk 0:00:13.5]} 40. Qxc7 {[%clk 0:00:20.2]}
40... Rxa8 {[%clk 0:00:13.9]} 41. Bxa8 {[%clk 0:00:21.6]} 41... h6 {[%clk
0:00:13.6]} 42. Qxf7 {[%clk 0:00:21.3]} 42... Be4 {[%clk 0:00:12.8]} 43. Bxe4
{[%clk 0:00:21.6]} 43... Bxe5 {[%clk 0:00:13.1]} 44. Qf8# {[%clk 0:00:19.8]} 1-0

[Event "*** Titled Tuesday Blitz"]
[Site "Chess.com"]
[Date "2019.06.04"]
[Round "6"]
[White "King_of_the_wing"]
[Black "witcher8"]
[Result "0-1"]
[WhiteElo "2198"]
[BlackElo "2379"]
[TimeControl "180+2"]
[EndTime "14:19:42 PDT"]
[Termination "witcher8 won by resignation"]

1. d4 {[%clk 0:03:01.9]} 1... Nf6 {[%clk 0:02:59.8]} 2. c4 {[%clk 0:03:02.7]}
2... g6 {[%clk 0:03:00.6]} 3. Nf3 {[%clk 0:03:02.3]} 3... Bg7 {[%clk 0:03:01.1]}
4. g3 {[%clk 0:03:03.3]} 4... O-O {[%clk 0:03:00.1]} 5. Bg2 {[%clk 0:03:04.5]}
5... d6 {[%clk 0:03:01.3]} 6. O-O {[%clk 0:03:04.8]} 6... Nc6 {[%clk 0:03:01.9]}
7. d5 {[%clk 0:03:03.5]} 7... Na5 {[%clk 0:03:01.2]} 8. Qa4 {[%clk 0:03:00.5]}
8... c5 {[%clk 0:02:43.9]} 9. Nbd2 {[%clk 0:02:48.4]} 9... a6 {[%clk 0:02:34.6]}
10. e4 {[%clk 0:02:47.1]} 10... Bd7 {[%clk 0:02:25.8]} 11. Qc2 {[%clk
0:02:47.2]} 11... b5 {[%clk 0:02:26.5]} 12. e5 {[%clk 0:02:34.3]} 12... Ng4
{[%clk 0:02:25.8]} 13. exd6 {[%clk 0:02:19.2]} 13... exd6 {[%clk 0:02:25.6]} 14.
Nb3 {[%clk 0:02:19.7]} 14... Nxc4 {[%clk 0:02:20.4]} 15. Nfd2 {[%clk 0:02:16.8]}
15... Nxd2 {[%clk 0:02:10.5]} 16. Bxd2 {[%clk 0:02:15.4]} 16... Ne5 {[%clk
0:02:10.8]} 17. Bf4 {[%clk 0:02:10.5]} 17... Re8 {[%clk 0:01:48.4]} 18. Rfe1
{[%clk 0:02:07.2]} 18... Qf6 {[%clk 0:01:42.5]} 19. Nd2 {[%clk 0:01:58.9]} 19...
g5 {[%clk 0:01:28.2]} 20. Ne4 {[%clk 0:01:52.6]} 20... Qg6 {[%clk 0:01:29.1]}
21. Bxg5 {[%clk 0:01:33.9]} 21... Bf5 {[%clk 0:01:28.5]} 22. Bf4 {[%clk
0:01:26.4]} 22... Nc4 {[%clk 0:01:25.7]} 23. Re2 {[%clk 0:00:56.7]} 23... Bxb2
{[%clk 0:01:07.6]} 24. Rae1 {[%clk 0:00:57.6]} 24... Be5 {[%clk 0:00:30.9]} 25.
Bxe5 {[%clk 0:00:53.5]} 25... Nxe5 {[%clk 0:00:18.8]} 26. Qb3 {[%clk 0:00:39.8]}
26... Kf8 {[%clk 0:00:16.7]} 27. a4 {[%clk 0:00:34]} 27... b4 {[%clk 0:00:13]}
28. f4 {[%clk 0:00:26.1]} 28... Nd7 {[%clk 0:00:10.2]} 29. Qf3 {[%clk
0:00:25.1]} 29... Bg4 {[%clk 0:00:08.3]} 30. Qf2 {[%clk 0:00:20.6]} 30... Bxe2
{[%clk 0:00:09.3]} 31. Rxe2 {[%clk 0:00:22.4]} 31... Rad8 {[%clk 0:00:09.1]} 32.
h3 {[%clk 0:00:18.8]} 32... Nf6 {[%clk 0:00:09.6]} 33. Ng5 {[%clk 0:00:15.2]}
33... Rxe2 {[%clk 0:00:09]} 34. Qxe2 {[%clk 0:00:16.9]} 34... Re8 {[%clk
0:00:09.4]} 35. Qxa6 {[%clk 0:00:17.6]} 35... h6 {[%clk 0:00:07.6]} 36. Qxd6+
{[%clk 0:00:17.2]} 36... Kg7 {[%clk 0:00:08.8]} 37. Qxc5 {[%clk 0:00:04.8]}
37... hxg5 {[%clk 0:00:08.6]} 38. Qxb4 {[%clk 0:00:04.4]} 38... gxf4 {[%clk
0:00:07.7]} 39. Qxf4 {[%clk 0:00:05.3]} 39... Nh5 {[%clk 0:00:07.3]} 40. Qd4+
{[%clk 0:00:05.7]} 40... Qf6 {[%clk 0:00:08.4]} 41. Qxf6+ {[%clk 0:00:06.7]}
41... Nxf6 {[%clk 0:00:07.5]} 42. d6 {[%clk 0:00:06.8]} 42... Rd8 {[%clk
0:00:08.1]} 0-1

[Event "*** Titled Tuesday Blitz"]
[Site "Chess.com"]
[Date "2019.06.04"]
[Round "6"]
[White "LuisFSiles"]
[Black "SimonKnightRivendell"]
[Result "1-0"]
[WhiteElo "2174"]
[BlackElo "2019"]
[TimeControl "180+2"]
[EndTime "14:19:44 PDT"]
[Termination "LuisFSiles won on time"]

1. e4 {[%clk 0:03:01.9]} 1... c6 {[%clk 0:02:59.4]} 2. d4 {[%clk 0:03:01.7]}
2... d5 {[%clk 0:03:00.4]} 3. exd5 {[%clk 0:03:02.5]} 3... cxd5 {[%clk
0:03:00.7]} 4. c4 {[%clk 0:03:03.4]} 4... Nf6 {[%clk 0:03:01.8]} 5. Nc3 {[%clk
0:03:03.2]} 5... g6 {[%clk 0:03:02.8]} 6. cxd5 {[%clk 0:02:56.1]} 6... Nxd5
{[%clk 0:03:02.8]} 7. Bc4 {[%clk 0:02:55.7]} 7... Nb6 {[%clk 0:03:00.4]} 8. Bb3
{[%clk 0:02:51.4]} 8... Bg7 {[%clk 0:03:01.3]} 9. Be3 {[%clk 0:02:40.1]} 9...
O-O {[%clk 0:03:01.5]} 10. Nf3 {[%clk 0:02:36.7]} 10... Bg4 {[%clk 0:03:00.3]}
11. h3 {[%clk 0:02:38]} 11... Bxf3 {[%clk 0:02:59.7]} 12. Qxf3 {[%clk
0:02:38.6]} 12... Nc6 {[%clk 0:03:00.4]} 13. d5 {[%clk 0:02:24.4]} 13... Ne5
{[%clk 0:03:00.7]} 14. Qe2 {[%clk 0:02:17.5]} 14... Rc8 {[%clk 0:03:01.4]} 15.
O-O {[%clk 0:02:17.7]} 15... Nec4 {[%clk 0:02:56.9]} 16. Bxc4 {[%clk 0:02:10.9]}
16... Nxc4 {[%clk 0:02:56.6]} 17. Rad1 {[%clk 0:01:46.6]} 17... Nxb2 {[%clk
0:02:55.8]} 18. Qxb2 {[%clk 0:01:47.6]} 18... Bxc3 {[%clk 0:02:55.3]} 19. Qxb7
{[%clk 0:01:49]} 19... Rc7 {[%clk 0:02:51.7]} 20. Qb3 {[%clk 0:01:46.3]} 20...
Be5 {[%clk 0:02:45.6]} 21. Rfe1 {[%clk 0:01:45.1]} 21... Qb8 {[%clk 0:02:41.1]}
22. Bh6 {[%clk 0:01:36]} 22... Qxb3 {[%clk 0:02:35.5]} 23. axb3 {[%clk
0:01:36.5]} 23... Bg7 {[%clk 0:02:36.4]} 24. Bg5 {[%clk 0:01:26.4]} 24... f6
{[%clk 0:02:17.4]} 25. Bf4 {[%clk 0:01:17.9]} 25... Rb7 {[%clk 0:02:18.3]} 26.
Re3 {[%clk 0:01:14.7]} 26... Rd8 {[%clk 0:02:14.5]} 27. Rde1 {[%clk 0:01:08.5]}
27... Kf7 {[%clk 0:02:14.9]} 28. Rd3 {[%clk 0:00:58.2]} 28... Rbd7 {[%clk
0:02:10.2]} 29. Red1 {[%clk 0:00:57.6]} 29... e5 {[%clk 0:02:02.6]} 30. dxe6+
{[%clk 0:00:58.3]} 30... Kxe6 {[%clk 0:02:03.1]} 31. Re3+ {[%clk 0:00:52.8]}
31... Kf7 {[%clk 0:01:53.8]} 32. Rde1 {[%clk 0:00:53.9]} 32... Bf8 {[%clk
0:01:48.1]} 33. Kh2 {[%clk 0:00:52.3]} 33... Bc5 {[%clk 0:01:36.6]} 34. Rf3
{[%clk 0:00:52.5]} 34... Rd3 {[%clk 0:01:23.2]} 35. Be3 {[%clk 0:00:44.9]} 35...
Bb4 {[%clk 0:01:11.7]} 36. Ra1 {[%clk 0:00:39.9]} 36... a5 {[%clk 0:01:12.4]}
37. Bb6 {[%clk 0:00:32]} 37... Rxf3 {[%clk 0:01:04.2]} 38. gxf3 {[%clk
0:00:33.9]} 38... Rb8 {[%clk 0:00:54.2]} 39. Bc7 {[%clk 0:00:24.3]} 39... Rb7
{[%clk 0:00:54.3]} 40. Bd8 {[%clk 0:00:25.7]} 40... Bc3 {[%clk 0:00:48.1]} 41.
Ra4 {[%clk 0:00:24.6]} 41... Rxb3 {[%clk 0:00:46.4]} 42. Bxa5 {[%clk 0:00:25.2]}
42... Be5+ {[%clk 0:00:39.2]} 43. f4 {[%clk 0:00:23.5]} 43... Bd6 {[%clk
0:00:18.1]} 44. Kg2 {[%clk 0:00:22.2]} 44... f5 {[%clk 0:00:15.9]} 45. Bd2
{[%clk 0:00:22.3]} 1-0

[Event "*** Titled Tuesday Blitz"]
[Site "Chess.com"]
[Date "2019.06.04"]
[Round "6"]
[White "GadimbayliA"]
[Black "rasmussvane"]
[Result "0-1"]
[WhiteElo "2848"]
[BlackElo "2887"]
[TimeControl "180+2"]
[EndTime "14:19:50 PDT"]
[Termination "rasmussvane won by resignation"]

1. e4 {[%clk 0:02:58.6]} 1... c6 {[%clk 0:03:01]} 2. Nf3 {[%clk 0:02:59]} 2...
d5 {[%clk 0:03:02.6]} 3. exd5 {[%clk 0:03:00.7]} 3... cxd5 {[%clk 0:03:03.6]} 4.
Ne5 {[%clk 0:03:02.3]} 4... Nf6 {[%clk 0:03:04.8]} 5. d4 {[%clk 0:03:01.4]} 5...
g6 {[%clk 0:03:01.1]} 6. c3 {[%clk 0:02:59.5]} 6... Bg7 {[%clk 0:03:01.9]} 7.
Nd2 {[%clk 0:03:00.3]} 7... O-O {[%clk 0:03:02.7]} 8. Bd3 {[%clk 0:03:00.8]}
8... Nc6 {[%clk 0:03:03.3]} 9. f4 {[%clk 0:02:59]} 9... Bf5 {[%clk 0:02:49.7]}
10. Qf3 {[%clk 0:02:45.7]} 10... Bxd3 {[%clk 0:02:26]} 11. Qxd3 {[%clk
0:02:47.6]} 11... e6 {[%clk 0:02:27.2]} 12. O-O {[%clk 0:02:44.2]} 12... Qc7
{[%clk 0:02:26.6]} 13. b3 {[%clk 0:02:20]} 13... a6 {[%clk 0:02:17]} 14. Bb2
{[%clk 0:02:17.6]} 14... b5 {[%clk 0:02:18.1]} 15. Rac1 {[%clk 0:02:14.4]} 15...
Qb7 {[%clk 0:02:16.4]} 16. Ba1 {[%clk 0:02:14.1]} 16... Rac8 {[%clk 0:02:15.3]}
17. h3 {[%clk 0:02:11.1]} 17... Ne7 {[%clk 0:02:10.4]} 18. g4 {[%clk 0:01:28.3]}
18... Ne4 {[%clk 0:02:05.2]} 19. Rfe1 {[%clk 0:01:26.4]} 19... Nxd2 {[%clk
0:01:46.2]} 20. Qxd2 {[%clk 0:01:27]} 20... Rc7 {[%clk 0:01:38.2]} 21. Bb2
{[%clk 0:01:23.7]} 21... Rfc8 {[%clk 0:01:37.7]} 22. Nd3 {[%clk 0:01:10.9]}
22... Qa7 {[%clk 0:01:24]} 23. Kh2 {[%clk 0:01:07.2]} 23... a5 {[%clk
0:01:13.2]} 24. a3 {[%clk 0:00:26.2]} 24... Nc6 {[%clk 0:01:08.6]} 25. Nc5
{[%clk 0:00:25.1]} 25... Qb6 {[%clk 0:00:34.6]} 26. Rc2 {[%clk 0:00:18.2]} 26...
b4 {[%clk 0:00:32.9]} 27. axb4 {[%clk 0:00:17.4]} 27... axb4 {[%clk 0:00:34.8]}
28. Rec1 {[%clk 0:00:18.5]} 28... bxc3 {[%clk 0:00:34.1]} 29. Bxc3 {[%clk
0:00:20.4]} 29... Qb5 {[%clk 0:00:31.4]} 30. Ba1 {[%clk 0:00:16.7]} 30... Nb4
{[%clk 0:00:28.8]} 31. Rc3 {[%clk 0:00:14.2]} 31... Ra8 {[%clk 0:00:27.3]} 32.
Na4 {[%clk 0:00:09.6]} 32... Rxc3 {[%clk 0:00:28.4]} 33. Bxc3 {[%clk 0:00:11]}
33... Nc6 {[%clk 0:00:28.1]} 34. Qd1 {[%clk 0:00:10.5]} 34... Qb8 {[%clk
0:00:25.1]} 35. Kg3 {[%clk 0:00:09.3]} 35... g5 {[%clk 0:00:26.4]} 36. Qf3
{[%clk 0:00:07.3]} 36... Bxd4 {[%clk 0:00:21.2]} 37. Rd1 {[%clk 0:00:05.5]}
37... Bxc3 {[%clk 0:00:18.5]} 38. Nxc3 {[%clk 0:00:07.4]} 38... Qxb3 {[%clk
0:00:18.5]} 39. fxg5 {[%clk 0:00:07.5]} 39... Ra3 {[%clk 0:00:19.7]} 40. Rd3
{[%clk 0:00:06.2]} 40... Ne5 {[%clk 0:00:16]} 41. Qf6 {[%clk 0:00:07.3]} 41...
Qb8 {[%clk 0:00:17.2]} 42. Qf4 {[%clk 0:00:08.6]} 42... d4 {[%clk 0:00:11.7]}
43. Rxd4 {[%clk 0:00:02.9]} 43... Rxc3+ {[%clk 0:00:12.5]} 44. Kh4 {[%clk
0:00:04.3]} 44... Ng6+ {[%clk 0:00:13.3]} 0-1

[Event "*** Titled Tuesday Blitz"]
[Site "Chess.com"]
[Date "2019.06.04"]
[Round "6"]
[White "pedroholly22"]
[Black "europa2012"]
[Result "0-1"]
[WhiteElo "2278"]
[BlackElo "2146"]
[TimeControl "180+2"]
[EndTime "14:19:53 PDT"]
[Termination "europa2012 won by checkmate"]

1. e4 {[%clk 0:03:01.9]} 1... e6 {[%clk 0:03:00.5]} 2. d4 {[%clk 0:03:02.2]}
2... d5 {[%clk 0:03:01.7]} 3. Nd2 {[%clk 0:03:02.5]} 3... Nf6 {[%clk 0:03:02.8]}
4. e5 {[%clk 0:03:03.3]} 4... Nfd7 {[%clk 0:03:04.1]} 5. Bd3 {[%clk 0:03:04.9]}
5... c5 {[%clk 0:03:05.3]} 6. c3 {[%clk 0:03:06.5]} 6... Nc6 {[%clk 0:03:06.8]}
7. Ngf3 {[%clk 0:03:06.7]} 7... Qb6 {[%clk 0:03:07.6]} 8. O-O {[%clk 0:03:07]}
8... cxd4 {[%clk 0:03:08.9]} 9. cxd4 {[%clk 0:03:08.9]} 9... Nxd4 {[%clk
0:03:10.5]} 10. Nxd4 {[%clk 0:03:10.8]} 10... Qxd4 {[%clk 0:03:11.8]} 11. Nf3
{[%clk 0:03:12.7]} 11... Qb6 {[%clk 0:03:12.1]} 12. Qe2 {[%clk 0:03:14.4]} 12...
Nc5 {[%clk 0:03:10]} 13. Be3 {[%clk 0:03:13]} 13... Qa5 {[%clk 0:03:05.2]} 14.
Bc2 {[%clk 0:03:04.2]} 14... Bd7 {[%clk 0:02:58.1]} 15. Rfb1 {[%clk 0:03:01.6]}
15... Qc7 {[%clk 0:02:55.5]} 16. b4 {[%clk 0:03:01.8]} 16... Na6 {[%clk
0:02:52.4]} 17. a3 {[%clk 0:03:00.6]} 17... Be7 {[%clk 0:02:47.3]} 18. Bd3
{[%clk 0:03:00.1]} 18... O-O {[%clk 0:02:37.4]} 19. Bxa6 {[%clk 0:02:58]} 19...
bxa6 {[%clk 0:02:38.6]} 20. Qxa6 {[%clk 0:02:59.7]} 20... Rfb8 {[%clk
0:02:29.7]} 21. Rc1 {[%clk 0:02:59.9]} 21... Qb7 {[%clk 0:02:30.7]} 22. Qxb7
{[%clk 0:02:58.5]} 22... Rxb7 {[%clk 0:02:32.6]} 23. Nd4 {[%clk 0:02:59.7]}
23... f6 {[%clk 0:02:25.5]} 24. f4 {[%clk 0:02:58.4]} 24... Kf7 {[%clk
0:02:23.9]} 25. Rab1 {[%clk 0:02:57.1]} 25... a5 {[%clk 0:02:21.6]} 26. b5
{[%clk 0:02:58]} 26... Bxa3 {[%clk 0:02:21]} 27. Rc2 {[%clk 0:02:52.1]} 27...
Bb4 {[%clk 0:02:20.5]} 28. Nc6 {[%clk 0:02:46.4]} 28... Rxb5 {[%clk 0:02:15.1]}
29. Nd4 {[%clk 0:02:36.6]} 29... Rb7 {[%clk 0:02:11.7]} 30. g4 {[%clk
0:02:33.4]} 30... Rab8 {[%clk 0:02:07.8]} 31. Ra1 {[%clk 0:02:28.6]} 31... a4
{[%clk 0:02:05.8]} 32. Nc6 {[%clk 0:02:26.4]} 32... Bxc6 {[%clk 0:02:04.9]} 33.
Rxc6 {[%clk 0:02:28.3]} 33... a3 {[%clk 0:02:03.1]} 34. f5 {[%clk 0:02:26.4]}
34... exf5 {[%clk 0:01:54.4]} 35. e6+ {[%clk 0:02:26.6]} 35... Ke7 {[%clk
0:01:53.2]} 36. gxf5 {[%clk 0:02:27]} 36... Ra8 {[%clk 0:01:43.1]} 37. Bf4
{[%clk 0:02:21.5]} 37... a2 {[%clk 0:01:41]} 38. Rc2 {[%clk 0:02:22.1]} 38...
Rba7 {[%clk 0:01:32.8]} 39. Kf2 {[%clk 0:02:20.7]} 39... Bd6 {[%clk 0:01:30.3]}
40. Bxd6+ {[%clk 0:02:20.8]} 40... Kxd6 {[%clk 0:01:31.3]} 41. Ke3 {[%clk
0:02:22.4]} 41... Ra3+ {[%clk 0:01:30.4]} 42. Kf2 {[%clk 0:02:22.3]} 42... Ke5
{[%clk 0:01:26.9]} 43. e7 {[%clk 0:02:16.6]} 43... Kxf5 {[%clk 0:01:25]} 44. Re2
{[%clk 0:02:02.6]} 44... Re8 {[%clk 0:01:23.2]} 45. Kg2 {[%clk 0:02:03.4]} 45...
Ra7 {[%clk 0:01:22.1]} 46. Raxa2 {[%clk 0:02:00]} 46... Rxa2 {[%clk 0:01:22.7]}
47. Rxa2 {[%clk 0:02:01.9]} 47... Rxe7 {[%clk 0:01:24.2]} 48. Rd2 {[%clk
0:02:01.6]} 48... Rd7 {[%clk 0:01:21.2]} 49. Kf3 {[%clk 0:02:01.5]} 49... g5
{[%clk 0:01:21.8]} 50. h3 {[%clk 0:02:03.4]} 50... h5 {[%clk 0:01:22.2]} 51. Ra2
{[%clk 0:02:05]} 51... g4+ {[%clk 0:01:22.8]} 52. hxg4+ {[%clk 0:02:06.9]} 52...
hxg4+ {[%clk 0:01:24.4]} 53. Kg3 {[%clk 0:02:08.8]} 53... Kg5 {[%clk 0:01:21.2]}
54. Ra5 {[%clk 0:02:09.4]} 54... f5 {[%clk 0:01:21.8]} 55. Ra8 {[%clk
0:02:10.6]} 55... f4+ {[%clk 0:01:21.6]} 56. Kf2 {[%clk 0:02:12.5]} 56... Rd6
{[%clk 0:01:17.5]} 57. Rg8+ {[%clk 0:02:13.3]} 57... Rg6 {[%clk 0:01:17.8]} 58.
Rd8 {[%clk 0:02:14.9]} 58... Kh4 {[%clk 0:01:13.1]} 59. Rxd5 {[%clk 0:02:13.9]}
59... f3 {[%clk 0:01:10]} 60. Rd1 {[%clk 0:02:04.7]} 60... Rf6 {[%clk
0:01:01.7]} 61. Rh1+ {[%clk 0:02:04.6]} 61... Kg5 {[%clk 0:01:03]} 62. Rd1
{[%clk 0:02:05.4]} 62... Rh6 {[%clk 0:00:53.6]} 63. Rd5+ {[%clk 0:02:03.1]}
63... Kf4 {[%clk 0:00:54.1]} 64. Rd4+ {[%clk 0:02:03.9]} 64... Kf5 {[%clk
0:00:55]} 65. Rd5+ {[%clk 0:01:56.7]} 65... Ke4 {[%clk 0:00:56]} 66. Rg5 {[%clk
0:01:58.1]} 66... Rh2+ {[%clk 0:00:53.5]} 67. Kg1 {[%clk 0:01:59.4]} 67... Rg2+
{[%clk 0:00:53.1]} 68. Kf1 {[%clk 0:02:00.8]} 68... g3 {[%clk 0:00:52]} 69. Rg8
{[%clk 0:01:56.8]} 69... Ra2 {[%clk 0:00:45.5]} 70. Re8+ {[%clk 0:01:56.9]}
70... Kf4 {[%clk 0:00:42.9]} 71. Rf8+ {[%clk 0:01:57.9]} 71... Kg4 {[%clk
0:00:44.2]} 72. Rg8+ {[%clk 0:01:59]} 72... Kf4 {[%clk 0:00:42.7]} 73. Rf8+
{[%clk 0:02:00.1]} 73... Ke3 {[%clk 0:00:44]} 74. Re8+ {[%clk 0:02:01]} 74...
Kd3 {[%clk 0:00:45.4]} 75. Rd8+ {[%clk 0:02:01.4]} 75... Kc4 {[%clk 0:00:46.4]}
76. Rc8+ {[%clk 0:02:02.7]} 76... Kd5 {[%clk 0:00:47.7]} 77. Rc1 {[%clk
0:02:03.7]} 77... Rh2 {[%clk 0:00:41]} 78. Rd1+ {[%clk 0:02:02.8]} 78... Ke4
{[%clk 0:00:41.2]} 79. Re1+ {[%clk 0:01:59.8]} 79... Kf4 {[%clk 0:00:41.9]} 80.
Re6 {[%clk 0:01:56.8]} 80... Rh1# {[%clk 0:00:41.1]} 0-1

[Event "*** Titled Tuesday Blitz"]
[Site "Chess.com"]
[Date "2019.06.04"]
[Round "6"]
[White "Saitama_Hero"]
[Black "colemman"]
[Result "1-0"]
[WhiteElo "2443"]
[BlackElo "2583"]
[TimeControl "180+2"]
[EndTime "14:19:59 PDT"]
[Termination "Saitama_Hero won by checkmate"]

1. d4 {[%clk 0:03:01.9]} 1... d5 {[%clk 0:03:00.5]} 2. c4 {[%clk 0:03:03.4]}
2... c6 {[%clk 0:03:02.4]} 3. cxd5 {[%clk 0:03:03.2]} 3... cxd5 {[%clk
0:03:02.4]} 4. Nc3 {[%clk 0:03:02.8]} 4... Nc6 {[%clk 0:03:03.8]} 5. f3 {[%clk
0:03:04.3]} 5... Nf6 {[%clk 0:03:00.7]} 6. e4 {[%clk 0:03:04.3]} 6... dxe4
{[%clk 0:03:00.8]} 7. d5 {[%clk 0:03:06.2]} 7... Ne5 {[%clk 0:02:50.8]} 8. fxe4
{[%clk 0:03:07.4]} 8... a6 {[%clk 0:02:45.8]} 9. Qd4 {[%clk 0:03:06.1]} 9... Nc6
{[%clk 0:02:43.2]} 10. Qa4 {[%clk 0:03:06.6]} 10... b5 {[%clk 0:02:43.3]} 11.
Bxb5 {[%clk 0:03:08.1]} 11... axb5 {[%clk 0:02:44.3]} 12. Qxa8 {[%clk
0:03:08.7]} 12... Nd4 {[%clk 0:02:41.4]} 13. Rb1 {[%clk 0:02:55.5]} 13... b4
{[%clk 0:02:36.5]} 14. Nce2 {[%clk 0:02:31.1]} 14... Nc2+ {[%clk 0:01:58.4]} 15.
Kf1 {[%clk 0:02:30.2]} 15... Nxe4 {[%clk 0:01:39.5]} 16. Qc6+ {[%clk 0:02:30.1]}
16... Qd7 {[%clk 0:01:39.6]} 17. Qxc2 {[%clk 0:02:30.6]} 17... Qf5+ {[%clk
0:01:39.7]} 18. Bf4 {[%clk 0:02:02.1]} 18... Ng3+ {[%clk 0:01:39.9]} 19. hxg3
{[%clk 0:01:59.4]} 19... Qxc2 {[%clk 0:01:40.6]} 20. Rc1 {[%clk 0:02:00.9]}
20... Qf5 {[%clk 0:01:41.1]} 21. Nf3 {[%clk 0:01:59]} 21... Ba6 {[%clk
0:01:37.7]} 22. Kf2 {[%clk 0:01:53.4]} 22... f6 {[%clk 0:01:28.5]} 23. d6 {[%clk
0:01:22.7]} 23... exd6 {[%clk 0:01:24.2]} 24. Ned4 {[%clk 0:01:17.3]} 24... Qa5
{[%clk 0:01:15.9]} 25. Ne6 {[%clk 0:01:00.3]} 25... Kf7 {[%clk 0:01:04.5]} 26.
Nfd4 {[%clk 0:01:00.9]} 26... Be7 {[%clk 0:00:57.5]} 27. Rc7 {[%clk 0:01:02.3]}
27... Rc8 {[%clk 0:00:48.7]} 28. Rhc1 {[%clk 0:00:55.3]} 28... Rxc7 {[%clk
0:00:46.6]} 29. Rxc7 {[%clk 0:00:57.2]} 29... Qxa2 {[%clk 0:00:46]} 30. Bxd6
{[%clk 0:00:48]} 30... Qxb2+ {[%clk 0:00:41.9]} 31. Kg1 {[%clk 0:00:46.5]} 31...
Kg6 {[%clk 0:00:26.8]} 32. Nf4+ {[%clk 0:00:34.4]} 32... Kg5 {[%clk 0:00:18.1]}
33. Nde6+ {[%clk 0:00:27.8]} 33... Kg4 {[%clk 0:00:15.6]} 34. Rxe7 {[%clk
0:00:26]} 34... g5 {[%clk 0:00:16.4]} 35. Nd5 {[%clk 0:00:03.8]} 35... Qc1+
{[%clk 0:00:11.2]} 36. Kh2 {[%clk 0:00:03.5]} 36... Kf5 {[%clk 0:00:11.4]} 37.
Nd4+ {[%clk 0:00:03.8]} 37... Kg6 {[%clk 0:00:12.4]} 38. Nxf6 {[%clk 0:00:05.7]}
38... Kxf6 {[%clk 0:00:13.1]} 39. Re6+ {[%clk 0:00:07.3]} 39... Kf7 {[%clk
0:00:14.2]} 40. Re7+ {[%clk 0:00:07.8]} 40... Kf6 {[%clk 0:00:15.6]} 41. Re6+
{[%clk 0:00:09.3]} 41... Kf7 {[%clk 0:00:17]} 42. Re7+ {[%clk 0:00:10.7]} 42...
Kg6 {[%clk 0:00:18.3]} 43. Re6+ {[%clk 0:00:12.1]} 43... Kh5 {[%clk 0:00:19.1]}
44. g4+ {[%clk 0:00:11.3]} 44... Kxg4 {[%clk 0:00:18.8]} 45. Re4+ {[%clk
0:00:12]} 45... Kh5 {[%clk 0:00:18.9]} 46. g4+ {[%clk 0:00:13.5]} 46... Kg6
{[%clk 0:00:17.7]} 47. Re6+ {[%clk 0:00:14.6]} 47... Kf7 {[%clk 0:00:19]} 48.
Re7+ {[%clk 0:00:15.3]} 48... Kg8 {[%clk 0:00:20.6]} 49. Re8+ {[%clk 0:00:15.1]}
49... Kf7 {[%clk 0:00:21.9]} 50. Rf8+ {[%clk 0:00:15.8]} 50... Kg6 {[%clk
0:00:22.2]} 51. Rg8+ {[%clk 0:00:16.7]} 51... Kh6 {[%clk 0:00:22.8]} 52. Nf5#
{[%clk 0:00:16.6]} 1-0